bitfinex/quotes_BTCUSD_20250727
["timestamp","ask_amount","ask_price","bid_price","bid_amount"]
[1753579956049,0.42548889,118280.0,118270.0,0.73765733]
[1753579956310,0.4339434,118280.0,118270.0,0.73765733]
[1753579956749,0.4339434,118280.0,118270.0,0.72920218]
[1753579956924,0.4339434,118280.0,118270.0,0.68488634]
[1753579957961,0.4339434,118280.0,118270.0,0.67643112]
[1753579958104,0.4339434,118280.0,118270.0,0.68488634]
[1753579958526,0.4339434,118280.0,118270.0,0.67643112]
[1753579958916,0.4339434,118280.0,118270.0,0.68488634]
[1753579961451,0.4339434,118280.0,118270.0,0.69334149]
[1753579962547,0.42548889,118280.0,118270.0,0.69334149]
[1753579963232,0.42548889,118280.0,118270.0,0.7017965]
[1753579963700,0.42548889,118280.0,118270.0,0.70179657]
[1753579964125,0.42548889,118280.0,118270.0,0.71025158]
[1753579964356,0.0518357,118280.0,118270.0,0.80318332]
[1753579964581,0.0518357,118280.0,118270.0,1.20366815]
[1753579965847,0.0498357,118280.0,118270.0,1.20366815]
[1753579966497,0.0488357,118280.0,118270.0,1.20366815]
[1753579966815,0.0488357,118280.0,118270.0,1.20466815]
[1753579967251,0.0488357,118280.0,118270.0,1.27229569]
[1753579968386,0.0488357,118280.0,118270.0,1.20466815]
[1753579972385,0.0487357,118280.0,118270.0,1.20466815]
[1753579973790,0.0487357,118280.0,118270.0,0.88866062]
[1753579980910,0.0487357,118280.0,118270.0,0.75926062]
[1753579981118,0.06564358,118280.0,118270.0,0.63038842]
[1753579981325,0.07409773,118280.0,118270.0,0.74238837]
[1753579981532,0.07409773,118280.0,118270.0,0.74238844]
[1753579981735,0.08255203,118280.0,118270.0,0.7339335]
[1753579981954,0.0910064,118280.0,118270.0,0.57067842]
[1753579982174,0.07409773,118280.0,118270.0,0.80194595]
[1753579982377,0.07409773,118280.0,118270.0,0.81040089]
[1753579982592,0.07409773,118280.0,118270.0,0.84310576]
[1753579983019,0.07409773,118280.0,118270.0,0.84210576]
[1753579983294,0.07409773,118280.0,118270.0,0.83658089]
[1753579983544,0.07509773,118280.0,118270.0,0.83658089]
[1753579983744,0.08355203,118280.0,118270.0,0.82812595]
[1753579984012,0.08355203,118280.0,118270.0,0.83658089]
[1753579984164,0.07509773,118280.0,118270.0,0.83658089]
[1753579984817,0.07509773,118280.0,118270.0,0.84503576]
[1753579986761,0.07509773,118280.0,118270.0,0.83658089]
[1753579986959,0.08355203,118280.0,118270.0,0.82812595]
[1753579987175,0.08355195,118280.0,118270.0,0.83658089]
[1753579988149,0.09200632,118280.0,118270.0,0.82812602]
[1753579988764,0.09200632,118280.0,118270.0,0.83658103]
[1753579988765,0.08355195,118280.0,118270.0,0.83658103]
[1753579988937,0.07509773,118280.0,118270.0,0.84503597]
[1753579989554,0.06664358,118280.0,118270.0,0.85565006]
[1753579989787,0.05818957,118280.0,118270.0,0.87095006]
[1753579989988,0.0497357,118280.0,118270.0,0.87095006]
[1753579990215,0.0497357,118280.0,118270.0,0.88695006]
[1753579992206,0.05818957,118280.0,118270.0,0.88695006]
[1753579992590,0.0497357,118280.0,118270.0,0.88695006]
[1753579994269,0.05818964,118280.0,118270.0,0.88695006]
[1753579994521,0.0497357,118280.0,118270.0,0.88695006]
[1753579997039,0.05818957,118280.0,118270.0,0.88695006]
[1753579997703,0.0497357,118280.0,118270.0,0.88695006]
[1753580000736,0.0447357,118280.0,118270.0,0.88695006]
[1753580001389,0.0447357,118280.0,118270.0,0.57094253]
[1753580001591,0.0447357,118280.0,118270.0,0.88695006]
[1753580003761,0.0447357,118280.0,118270.0,0.75707006]
[1753580003993,0.0447357,118280.0,118270.0,0.88687006]
[1753580004725,0.0447357,118280.0,118270.0,0.88683006]
[1753580004937,0.05318957,118280.0,118270.0,0.88683006]
[1753580005124,0.05318957,118280.0,118270.0,0.74861534]
[1753580005352,0.06164351,118280.0,118270.0,0.88683006]
[1753580007775,0.05318957,118280.0,118270.0,0.88683006]
[1753580008001,0.06164358,118280.0,118270.0,0.88683006]
[1753580008243,0.05318957,118280.0,118270.0,0.88683006]
[1753580009806,0.0447357,118280.0,118270.0,0.88683006]
[1753580011601,0.05318964,118280.0,118270.0,0.88683006]
[1753580011818,0.0447357,118280.0,118270.0,0.88683006]
[1753580013190,0.05318964,118280.0,118270.0,0.88683006]
[1753580013467,0.05318957,118280.0,118270.0,0.88683006]
[1753580015068,0.0447357,118280.0,118270.0,0.88683006]
[1753580016675,0.0447357,118280.0,118270.0,1.20283759]
[1753580017354,0.0437357,118280.0,118270.0,1.20283759]
[1753580017821,0.0437357,118280.0,118270.0,1.20383759]
[1753580022339,0.0437357,118280.0,118270.0,0.57182253]
[1753580022557,0.0437357,118280.0,118270.0,1.20383759]
[1753580023404,0.0437357,118280.0,118270.0,0.88783006]
[1753580028122,0.0437357,118280.0,118270.0,1.20383759]
[1753580028971,0.0437357,118280.0,118270.0,0.88783006]
[1753580036555,0.0437357,118280.0,118270.0,0.57182253]
[1753580036752,0.0437357,118280.0,118270.0,0.88783006]
[1753580043863,0.0437357,118280.0,118270.0,0.57182253]
[1753580044136,0.0437357,118280.0,118270.0,0.88783006]
[1753580052441,0.0437357,118280.0,118270.0,1.20383759]
[1753580052741,0.0437357,118280.0,118270.0,0.88783006]
[1753580073824,0.0437357,118280.0,118270.0,0.91334975]
[1753580091259,0.0437357,118280.0,118270.0,0.59734222]
[1753580091474,0.0437357,118280.0,118270.0,0.91334975]
[1753580094183,1e-08,118280.0,118270.0,1.22935728]
[1753580094404,1e-08,118280.0,118270.0,0.91334975]
[1753580094862,1e-08,118280.0,118270.0,1.22935728]
[1753580095305,1e-08,118280.0,118270.0,0.91334975]
[1753580100084,1e-08,118280.0,118270.0,1.22935728]
[1753580102142,1e-08,118280.0,118270.0,0.91334975]
[1753580108875,1e-08,118280.0,118270.0,0.59734222]
[1753580109114,1e-08,118280.0,118270.0,0.91334975]
[1753580121474,1e-08,118280.0,118270.0,1.22935728]
[1753580122422,1e-08,118280.0,118270.0,0.91334975]
[1753580132287,1e-08,118280.0,118270.0,0.88783006]
[1753580137533,1e-08,118280.0,118270.0,0.91330946]
[1753580180826,1e-08,118280.0,118270.0,0.78354946]
[1753580181039,1e-08,118280.0,118270.0,0.91246946]
[1753580182149,1e-08,118280.0,118270.0,0.59646193]
[1753580182421,1e-08,118280.0,118270.0,0.91246946]
[1753580186687,1e-08,118280.0,118270.0,0.91242946]
[1753580187905,1e-08,118280.0,118270.0,0.59642193]
[1753580188116,1e-08,118280.0,118270.0,0.91242946]
[1753580194973,1e-08,118280.0,118270.0,1.22843699]
[1753580195176,1e-08,118280.0,118270.0,0.91242946]
[1753580197273,1e-08,118280.0,118270.0,0.88695006]
[1753580198339,1e-08,118280.0,118270.0,1.20295759]
[1753580198565,1e-08,118280.0,118270.0,0.88695006]
[1753580200331,1e-08,118280.0,118270.0,0.57094253]
[1753580200570,1e-08,118280.0,118270.0,0.88695006]
[1753580201415,1e-08,118280.0,118270.0,0.91188534]
[1753580202562,1e-08,118280.0,118270.0,1.22789287]
[1753580203874,1e-08,118280.0,118270.0,1.23649669]
[1753580210284,1e-08,118280.0,118270.0,1.10761669]
[1753580210543,1e-08,118280.0,118270.0,1.23649669]
[1753580213168,1e-08,118280.0,118270.0,0.92048916]
[1753580228398,1e-08,118280.0,118270.0,1.18598916]
[1753580230647,1e-08,118280.0,118270.0,1.50199669]
[1753580231125,1e-08,118280.0,118270.0,1.18598916]
[1753580259842,1e-08,118280.0,118270.0,1.84199669]
[1753580261759,1e-08,118280.0,118270.0,1.52598916]
[1753580262410,1e-08,118280.0,118270.0,1.80845759]
[1753580265808,1e-08,118280.0,118270.0,1.83390401]
[1753580273374,1e-08,118280.0,118270.0,1.84236744]
[1753580289198,1e-08,118280.0,118270.0,1.57686744]
[1753580299262,1e-08,118280.0,118270.0,1.84236744]
[1753580315315,1e-08,118290.0,118280.0,0.22685296]
[1753580315514,4.849e-05,118290.0,118280.0,1.18651262]
[1753580316913,4.849e-05,118290.0,118280.0,1.18751262]
[1753580317055,4.849e-05,118290.0,118280.0,1.45501262]
[1753580328238,4.849e-05,118290.0,118280.0,1.47246164]
[1753580333616,1e-08,118290.0,118280.0,1.81246164]
[1753580334069,1e-08,118290.0,118280.0,2.12846917]
[1753580334436,1e-08,118290.0,118280.0,1.81246164]
[1753580334860,1e-08,118290.0,118280.0,1.83784664]
[1753580340251,1e-08,118290.0,118280.0,2.04084664]
[1753580345308,0.0313,118320.0,118310.0,0.51041118]
[1753580345508,0.03134849,118320.0,118310.0,0.79316507]
[1753580346580,0.03334849,118320.0,118310.0,0.79316507]
[1753580347220,0.03434849,118320.0,118310.0,0.79316507]
[1753580347889,0.03334849,118320.0,118310.0,0.79316507]
[1753580348328,0.03434849,118320.0,118310.0,0.79316507]
[1753580349094,0.03234849,118320.0,118310.0,0.79316507]
[1753580349508,0.03334849,118320.0,118310.0,0.79316507]
[1753580355000,0.03334849,118320.0,118310.0,0.81618507]
[1753580356584,0.03334849,118320.0,118310.0,0.81920507]
[1753580359818,0.03334849,118320.0,118310.0,0.82122507]
[1753580360029,0.01714849,118320.0,118310.0,0.82122507]
[1753580360246,0.00204849,118320.0,118310.0,0.82122507]
[1753580360472,0.00204849,118320.0,118310.0,1.1538326]
[1753580360729,0.00204849,118320.0,118310.0,0.83782507]
[1753580360952,0.00204849,118320.0,118310.0,0.82122507]
[1753580361430,0.00104849,118320.0,118310.0,0.50521754]
[1753580361686,0.00104849,118320.0,118310.0,0.82122507]
[1753580363040,4.849e-05,118320.0,118310.0,0.82122507]
[1753580363682,0.03144849,118320.0,118310.0,0.6560732]
[1753580363918,0.03144849,118320.0,118310.0,0.79316507]
[1753580364621,0.03144849,118320.0,118310.0,0.81662507]
[1753580366438,0.0398995,118320.0,118310.0,0.81662507]
[1753580366663,0.03144849,118320.0,118310.0,0.81662507]
[1753580367075,0.03144849,118320.0,118310.0,0.81983507]
[1753580367750,0.03144849,118320.0,118310.0,0.50382754]
[1753580367990,0.03144849,118320.0,118310.0,0.81983507]
[1753580369395,0.0398995,118320.0,118310.0,0.81983507]
[1753580369600,0.03144849,118320.0,118310.0,0.82198507]
[1753580370886,0.03144849,118320.0,118310.0,0.69334507]
[1753580371110,0.03144849,118320.0,118310.0,0.82194507]
[1753580373813,0.04835072,118320.0,118310.0,0.33161367]
[1753580374022,0.04835072,118320.0,118310.0,0.79312529]
[1753580374480,0.05680209,118320.0,118310.0,0.79312543]
[1753580374691,0.05680209,118320.0,118310.0,0.80813335]
[1753580374940,0.05680209,118320.0,118310.0,0.8165855]
[1753580375093,0.05680209,118320.0,118310.0,0.81658557]
[1753580375306,0.05780209,118320.0,118310.0,0.83348966]
[1753580375520,0.05880209,118320.0,118310.0,0.82503765]
[1753580376122,0.05880209,118320.0,118310.0,0.83348966]
[1753580376375,0.05035072,118320.0,118310.0,0.83348966]
[1753580376934,0.05880216,118320.0,118310.0,0.50057804]
[1753580377136,0.05035072,118320.0,118310.0,0.82503758]
[1753580377352,0.06725352,118320.0,118310.0,0.50057804]
[1753580377562,0.06725352,118320.0,118310.0,0.3990293]
[1753580377776,0.06725352,118320.0,118310.0,0.2704293]
[1753580378019,0.06725352,118320.0,118310.0,0.3990293]
[1753580378196,0.04750366,118310.0,118300.0,0.43454952]
[1753580378408,0.04750366,118310.0,118300.0,0.66453262]
[1753580378614,0.05595574,118310.0,118300.0,0.98054015]
[1753580378825,0.05595574,118310.0,118300.0,1.06501745]
[1753580379237,0.05595574,118310.0,118300.0,0.79951745]
[1753580379440,0.05595574,118310.0,118300.0,0.80797032]
[1753580379647,0.04750366,118310.0,118300.0,0.80797032]
[1753580379857,0.06440796,118310.0,118300.0,0.27043277]
[1753580380056,0.05595574,118310.0,118300.0,0.40748564]
[1753580380258,0.05595574,118310.0,118300.0,0.41593843]
[1753580380464,0.04750366,118310.0,118300.0,0.42439115]
[1753580380665,0.05595567,118310.0,118300.0,0.42439115]
[1753580381140,0.04750359,118310.0,118300.0,0.42439072]
[1753580381332,0.04750359,118310.0,118300.0,0.42439079]
[1753580381548,0.04750359,118310.0,118300.0,0.44785079]
[1753580382179,0.06440761,118310.0,118300.0,0.43094542]
[1753580382384,0.06440754,118310.0,118300.0,0.43939814]
[1753580382601,0.05595553,118310.0,118300.0,0.43939814]
[1753580382801,0.05595553,118310.0,118300.0,0.44785079]
[1753580383361,0.05595553,118310.0,118300.0,0.40558682]
[1753580383604,0.06540761,118310.0,118300.0,0.4074857]
[1753580384030,0.06540754,118310.0,118300.0,0.4309457]
[1753580384250,0.06540754,118310.0,118300.0,0.43939842]
[1753580384474,0.06640754,118310.0,118300.0,0.4309457]
[1753580384699,0.04950359,118310.0,118300.0,0.43939835]
[1753580384923,0.04950359,118310.0,118300.0,0.44785093]
[1753580385138,0.04950359,118310.0,118300.0,0.75861588]
[1753580385582,0.04950359,118310.0,118300.0,0.76706846]
[1753580385818,0.04950359,118310.0,118300.0,0.75861588]
[1753580386473,0.04950359,118310.0,118300.0,0.7670686]
[1753580387128,0.04950359,118310.0,118300.0,0.7670681]
[1753580388310,0.0579556,118310.0,118300.0,0.43415534]
[1753580388533,0.04950359,118310.0,118300.0,0.75861552]
[1753580388974,0.04950359,118310.0,118300.0,0.7670681]
[1753580389657,0.04950359,118310.0,118300.0,0.7692181]
[1753580389822,0.04950351,118310.0,118300.0,0.7692181]
[1753580391275,0.04105172,118310.0,118300.0,0.7692181]
[1753580391491,0.04950351,118310.0,118300.0,0.7692181]
[1753580392644,0.04105172,118310.0,118300.0,0.7692181]
[1753580394534,0.0326,118310.0,118300.0,0.7692181]
[1753580395628,0.04105179,118310.0,118300.0,0.79504799]
[1753580396021,0.0326,118310.0,118300.0,0.79504799]
[1753580396445,0.0326,118310.0,118300.0,0.7692181]
[1753580397578,0.02595179,118310.0,118300.0,0.7692181]
[1753580397784,0.0175,118310.0,118300.0,0.7692181]
[1753580398321,0.0175,118310.0,118300.0,0.45321057]
[1753580398534,0.0175,118310.0,118300.0,0.7692181]
[1753580400186,0.02595187,118310.0,118300.0,0.7692181]
[1753580400468,0.37466349,118310.0,118300.0,0.28234682]
[1753580400714,0.55216327,118310.0,118300.0,0.32110952]
[1753580400945,0.53525946,118310.0,118300.0,0.32110952]
[1753580401867,0.37466391,118310.0,118300.0,0.29764952]
[1753580402082,0.38311628,118310.0,118300.0,0.3290826]
[1753580402767,0.38311628,118310.0,118300.0,0.32062952]
[1753580403010,0.06710875,118310.0,118300.0,0.3290826]
[1753580403234,0.05020409,118310.0,118300.0,0.3290826]
[1753580403488,0.05865638,118310.0,118300.0,0.32381952]
[1753580404213,0.22770379,118310.0,118300.0,0.32381952]
[1753580405218,0.22712179,118310.0,118300.0,0.40718592]
[1753580405671,0.22712179,118310.0,118300.0,0.32381952]
[1753580406810,0.05807438,118310.0,118300.0,0.3322726]
[1753580407299,0.05807438,118310.0,118300.0,0.32381952]
[1753580407537,0.05807438,118310.0,118300.0,0.33227253]
[1753580407741,0.05807438,118310.0,118300.0,0.33440253]
[1753580408313,0.05807438,118310.0,118300.0,0.34285561]
[1753580408906,0.04962209,118310.0,118300.0,0.35130855]
[1753580409123,0.05807438,118310.0,118300.0,0.35130855]
[1753580409336,0.04962209,118310.0,118300.0,0.34285561]
[1753580409556,0.05807438,118310.0,118300.0,0.34285561]
[1753580411059,0.04962209,118310.0,118300.0,0.34285561]
[1753580411285,0.04962209,118310.0,118300.0,0.35130855]
[1753580411498,0.05807438,118310.0,118300.0,0.35130855]
[1753580411720,0.05807374,118310.0,118300.0,0.35976134]
[1753580411914,0.04297374,118310.0,118300.0,0.38224376]
[1753580412347,0.04297374,118310.0,118300.0,0.67576887]
[1753580413006,0.05987811,118310.0,118300.0,0.658863]
[1753580413234,0.05142589,118310.0,118300.0,0.66731587]
[1753580413905,0.05987818,118310.0,118300.0,0.658863]
[1753580414100,0.05142639,118310.0,118300.0,0.3344026]
[1753580414463,0.05987876,118310.0,118300.0,0.3344026]
[1753580414878,0.05987876,118310.0,118300.0,0.65886314]
[1753580415072,0.05987868,118310.0,118300.0,0.65886314]
[1753580416046,0.05987868,118310.0,118300.0,0.66731608]
[1753580416268,0.05142639,118310.0,118300.0,0.66731608]
[1753580416488,0.05142639,118310.0,118300.0,0.65886314]
[1753580416726,0.05987876,118310.0,118300.0,0.65886314]
[1753580416970,0.05987876,118310.0,118300.0,0.34285561]
[1753580417224,0.05142639,118310.0,118300.0,0.34285561]
[1753580417691,0.07507876,118310.0,118300.0,0.34285561]
[1753580417960,0.07507868,118310.0,118300.0,0.34285561]
[1753580418197,0.07366068,118310.0,118300.0,0.34285561]
[1753580418657,0.07666068,118310.0,118300.0,0.34285561]
[1753580418925,0.06146068,118310.0,118300.0,0.34285561]
[1753580419997,0.05300874,118310.0,118300.0,0.3344026]
[1753580420202,0.05300874,118310.0,118300.0,0.34285561]
[1753580420615,0.05300874,118310.0,118300.0,0.32594952]
[1753580420829,0.05300874,118310.0,118300.0,0.3344026]
[1753580421040,0.22205615,118310.0,118300.0,0.32594952]
[1753580421216,0.5296116,118310.0,118300.0,0.32594952]
[1753580421677,0.5448116,118310.0,118300.0,0.32594952]
[1753580422303,0.22880407,118310.0,118300.0,0.32594952]
[1753580422560,0.52790723,118310.0,118300.0,0.29764952]
[1753580422974,0.52790723,118310.0,118300.0,0.32062952]
[1753580423127,0.2118997,118310.0,118300.0,0.32381952]
[1753580424651,0.05130437,118310.0,118300.0,0.38191726]
[1753580424872,0.05130437,118310.0,118300.0,0.32597952]
[1753580426205,0.05975674,118310.0,118300.0,0.3344326]
[1753580426414,0.05975674,118310.0,118300.0,0.32597952]
[1753580427624,0.05975674,118310.0,118300.0,0.3344326]
[1753580427836,0.05975674,118310.0,118300.0,0.32597952]
[1753580428250,0.05975674,118310.0,118300.0,0.4189099]
[1753580429229,0.05975674,118310.0,118300.0,0.32597952]
[1753580429868,0.04455674,118310.0,118300.0,0.32597952]
[1753580430009,0.04455674,118310.0,118300.0,0.3344326]
[1753580430712,0.21360415,118310.0,118300.0,0.32597952]
[1753580431575,0.19740415,118310.0,118300.0,0.32597952]
[1753580431717,0.18895207,118310.0,118300.0,0.32597952]
[1753580432533,0.18895207,118310.0,118300.0,0.3344326]
[1753580433086,0.18895207,118310.0,118300.0,0.32597952]
[1753580433287,0.18895207,118310.0,118300.0,0.3344326]
[1753580433744,0.18895207,118310.0,118300.0,0.32597952]
[1753580433893,0.18895207,118310.0,118300.0,0.3344326]
[1753580434281,0.18895207,118310.0,118300.0,0.32597952]
[1753580434492,0.18049978,118310.0,118300.0,0.15693]
[1753580435291,0.21149978,118310.0,118300.0,0.15693]
[1753580435951,0.19549978,118310.0,118300.0,0.15693]
[1753580436152,0.18049978,118310.0,118300.0,0.15693]
[1753580439335,0.18049978,118310.0,118300.0,0.02833]
[1753580441600,0.18049978,118310.0,118300.0,0.22072871]
[1753580441815,0.18049978,118310.0,118300.0,0.21227563]
[1753580442034,0.18049978,118310.0,118300.0,0.1973917]
[1753580443897,0.18049978,118310.0,118300.0,0.20584478]
[1753580444721,0.18049978,118310.0,118300.0,0.1973917]
[1753580446339,0.18049978,118310.0,118300.0,0.02833]
[1753580447951,0.49650731,118310.0,118300.0,0.02833]
[1753580448159,0.50443573,118310.0,118300.0,0.02617]
[1753580448569,0.1884282,118310.0,118300.0,0.02617]
[1753580448791,0.18049978,118310.0,118300.0,0.02617]
[1753580449204,0.52760731,118310.0,118300.0,0.02298]
[1753580449417,0.53553573,118310.0,118300.0,0.02298]
[1753580449837,0.53553729,118310.0,118300.0,0.02298]
[1753580450043,0.53553729,118310.0,118300.0,0.02603]
[1753580451023,0.50443659,118310.0,118300.0,0.02603]
[1753580451814,0.87553659,118310.0,118300.0,0.02298]
[1753580452033,0.17751464,118300.0,118290.0,0.02779]
[1753580452263,0.62204217,118300.0,118290.0,0.02779]
[1753580452487,0.62997145,118300.0,118290.0,0.02779]
[1753580454769,0.63097145,118300.0,118290.0,0.02779]
[1753580455211,0.63097145,118300.0,118290.0,0.02981]
[1753580456078,0.62997145,118300.0,118290.0,0.02981]
[1753580456289,0.63096429,118300.0,118290.0,0.02981]
[1753580456525,0.63296429,118300.0,118290.0,0.02981]
[1753580457220,0.62504217,118300.0,118290.0,0.02981]
[1753580458176,0.30903464,118300.0,118290.0,0.02981]
[1753580460189,0.62504217,118300.0,118290.0,0.02981]
[1753580462825,0.30903464,118300.0,118290.0,0.02981]
[1753580470210,0.30903464,118300.0,118290.0,0.04591]
[1753580470861,0.30903464,118300.0,118290.0,0.02981]
[1753580471101,0.30903464,118300.0,118290.0,0.02779]
[1753580471306,0.62504217,118300.0,118290.0,0.02779]
[1753580472505,0.30903464,118300.0,118290.0,0.02779]
[1753580474316,0.32487707,118300.0,118290.0,0.02779]
[1753580475004,0.64088485,118300.0,118290.0,0.02779]
[1753580476174,0.32487732,118300.0,118290.0,0.02779]
[1753580476360,0.33280019,118300.0,118290.0,0.02779]
[1753580479781,0.33280019,118300.0,118290.0,0.04429]
[1753580482738,0.32487732,118300.0,118290.0,0.04429]
[1753580482967,0.33280866,118300.0,118290.0,0.04631]
[1753580486049,0.31696598,118300.0,118290.0,0.04631]
[1753580486300,0.32489734,118300.0,118290.0,0.04631]
[1753580486738,0.31696599,118300.0,118290.0,0.04631]
[1753580486922,0.33282869,118300.0,118290.0,0.04631]
[1753580487049,0.64883622,118300.0,118290.0,0.04631]
[1753580488524,0.33282869,118300.0,118290.0,0.04631]
[1753580490093,0.30903464,118300.0,118290.0,0.04631]
[1753580490310,0.33282869,118300.0,118290.0,0.04631]
[1753580491557,0.64883622,118300.0,118290.0,0.02474]
[1753580491955,0.64883622,118300.0,118290.0,0.02792]
[1753580492181,0.98883622,118300.0,118290.0,0.02474]
[1753580492620,1.01423322,118300.0,118290.0,0.02474]
[1753580493156,1.01423322,118300.0,118290.0,0.02792]
[1753580496970,0.69822569,118300.0,118290.0,0.02792]
[1753580497194,0.69822569,118300.0,118290.0,0.04312]
[1753580498099,0.69822569,118300.0,118290.0,0.0608]
[1753580499208,0.69822567,118300.0,118290.0,0.0608]
[1753580501206,0.69818567,118300.0,118290.0,0.37680753]
[1753580502090,0.69818566,118300.0,118290.0,0.37680753]
[1753580505136,0.69818532,118300.0,118290.0,0.37680753]
[1753580506012,0.69818532,118300.0,118290.0,0.0608]
[1753580506211,0.69818532,118300.0,118290.0,0.37680753]
[1753580506974,0.69818532,118300.0,118290.0,0.0608]
[1753580507180,0.69818532,118300.0,118290.0,0.37680753]
[1753580509361,0.6981852,118300.0,118290.0,0.37680753]
[1753580514345,0.69817812,118300.0,118290.0,0.37680753]
[1753580516527,0.69807841,118300.0,118290.0,0.37680753]
[1753580519611,0.69807841,118300.0,118290.0,0.0608]
[1753580520432,1.01408594,118300.0,118290.0,0.0451]
[1753580520621,1.01408594,118300.0,118290.0,0.04312]
[1753580521707,0.70652673,118300.0,118290.0,0.04312]
[1753580521923,1.0225293,118300.0,118290.0,0.04312]
[1753580522424,1.01408098,118300.0,118290.0,0.04312]
[1753580524269,1.01407411,118300.0,118290.0,0.04312]
[1753580526512,1.02272469,118300.0,118290.0,0.04312]
[1753580528548,1.0227201,118300.0,118290.0,0.04312]
[1753580530868,1.08715966,118300.0,118290.0,0.02792]
[1753580531101,0.51752964,118290.0,118280.0,0.05874]
[1753580531329,0.98574723,118290.0,118280.0,0.06075]
[1753580532416,0.98674723,118290.0,118280.0,0.06075]
[1753580534466,0.98674641,118290.0,118280.0,0.06075]
[1753580536892,0.98674636,118290.0,118280.0,0.06075]
[1753580537579,0.98674686,118290.0,118280.0,0.04374]
[1753580540623,0.98674686,118290.0,118280.0,0.02744]
[1753580541075,0.98674686,118290.0,118280.0,0.04294]
[1753580543406,0.98674693,118290.0,118280.0,0.04294]
[1753580546752,0.6707394,118290.0,118280.0,0.04294]
[1753580546974,0.98674693,118290.0,118280.0,0.04294]
[1753580547193,0.96297717,118290.0,118280.0,0.04294]
[1753580548560,0.98675376,118290.0,118280.0,0.05854]
[1753580549023,0.98675376,118290.0,118280.0,0.06057]
[1753580550948,0.98675552,118290.0,118280.0,0.06057]
[1753580551626,0.98675646,118290.0,118280.0,0.06057]
[1753580556363,0.67074893,118290.0,118280.0,0.06057]
[1753580556587,0.98675646,118290.0,118280.0,0.06057]
[1753580562183,0.67074893,118290.0,118280.0,0.06057]
[1753580562424,0.98675646,118290.0,118280.0,0.06057]
[1753580565213,0.67074893,118290.0,118280.0,0.06057]
[1753580565421,0.98675646,118290.0,118280.0,0.06057]
[1753580565835,0.67074893,118290.0,118280.0,0.06057]
[1753580566056,0.98675646,118290.0,118280.0,0.06057]
[1753580566708,0.98575646,118290.0,118280.0,0.06057]
[1753580566912,0.98875646,118290.0,118280.0,0.06057]
[1753580568606,0.67274893,118290.0,118280.0,0.06057]
[1753580568807,0.98875646,118290.0,118280.0,0.06057]
[1753580569436,1.00620548,118290.0,118280.0,0.05551]
[1753580569871,1.00620548,118290.0,118280.0,0.05858]
[1753580571407,1.00621113,118290.0,118280.0,0.05858]
[1753580577291,1.00621117,118290.0,118280.0,0.05858]
[1753580580281,0.69020364,118290.0,118280.0,0.05858]
[1753580580404,1.00621117,118290.0,118280.0,0.05858]
[1753580582017,1.0062112,118290.0,118280.0,0.05858]
[1753580583065,1.0062112,118290.0,118280.0,0.06065]
[1753580583294,0.54431465,118290.0,118280.0,0.06065]
[1753580583520,0.54431465,118290.0,118280.0,0.44124262]
[1753580583725,0.67267465,118290.0,118280.0,0.44124262]
[1753580584437,0.68112823,118290.0,118280.0,0.61878742]
[1753580584656,0.67267465,118290.0,118280.0,0.44124262]
[1753580585347,0.67267465,118290.0,118280.0,0.37665753]
[1753580587338,0.67267465,118290.0,118280.0,0.06065]
[1753580587519,0.67267465,118290.0,118280.0,0.37665753]
[1753580587968,0.67267135,118290.0,118280.0,0.37665753]
[1753580589186,0.52052964,118290.0,118280.0,0.37665753]
[1753580589402,0.64888964,118290.0,118280.0,0.44462454]
[1753580589807,0.18898322,118290.0,118280.0,0.69101663]
[1753580590022,0.19743666,118290.0,118280.0,0.69101663]
[1753580590182,0.19743666,118290.0,118280.0,0.69947078]
[1753580590183,0.21434367,118290.0,118280.0,0.69947078]
[1753580590401,0.04526768,118290.0,118280.0,0.70792486]
[1753580593851,0.19743701,118290.0,118280.0,0.68256233]
[1753580594077,0.19743701,118290.0,118280.0,0.69101677]
[1753580594312,0.19743701,118290.0,118280.0,0.69947114]
[1753580594957,0.19743701,118290.0,118280.0,0.70792544]
[1753580598214,0.19743701,118290.0,118280.0,0.71637959]
[1753580598872,0.1889835,118290.0,118280.0,0.70792544]
[1753580599522,0.1889835,118290.0,118280.0,0.71637966]
[1753580604573,0.1889835,118290.0,118280.0,0.70792544]
[1753580604849,0.18052978,118290.0,118280.0,0.70792544]
[1753580605631,0.18052978,118290.0,118280.0,0.39191791]
[1753580605853,0.17207599,118290.0,118280.0,0.37500924]
[1753580606070,0.17207599,118290.0,118280.0,0.69101677]
[1753580606909,0.17207599,118290.0,118280.0,0.51347204]
[1753580608916,0.17207599,118290.0,118280.0,0.50501753]
[1753580612070,0.17207599,118290.0,118280.0,0.06065]
[1753580612319,0.48808352,118290.0,118280.0,0.17126]
[1753580612549,0.49600081,118290.0,118280.0,0.15269]
[1753580612980,0.5118444,118290.0,118280.0,0.15269]
[1753580613474,0.6401244,118290.0,118280.0,0.15269]
[1753580613698,0.6401244,118290.0,118280.0,0.02441]
[1753580613921,0.6401244,118290.0,118280.0,0.15269]
[1753580614372,0.64012653,118290.0,118280.0,0.15269]
[1753580615885,0.64012653,118290.0,118280.0,0.02441]
[1753580619226,0.324119,118290.0,118280.0,0.02441]
[1753580619439,0.64012653,118290.0,118280.0,0.02441]
[1753580619649,0.324119,118290.0,118280.0,0.06185]
[1753580619817,0.324119,118290.0,118280.0,0.37785753]
[1753580620426,0.30827328,118290.0,118280.0,0.37785753]
[1753580622911,0.30827595,118290.0,118280.0,0.37785753]
[1753580626273,0.30827595,118290.0,118280.0,0.62701729]
[1753580626497,0.30035599,118290.0,118280.0,0.37785753]
[1753580626712,0.30035599,118290.0,118280.0,0.06185]
[1753580626927,0.30035599,118290.0,118280.0,0.37785753]
[1753580633597,0.30035599,118290.0,118280.0,0.06185]
[1753580633805,0.61636352,118290.0,118280.0,0.06185]
[1753580634071,0.30035599,118290.0,118280.0,0.06185]
[1753580634302,0.30035599,118290.0,118280.0,0.37785753]
[1753580634531,0.30035599,118290.0,118280.0,0.06185]
[1753580636996,0.3082806,118290.0,118280.0,0.06185]
[1753580637621,0.30828131,118290.0,118280.0,0.06185]
[1753580637828,0.32413196,118290.0,118280.0,0.02975]
[1753580638040,0.32413196,118290.0,118280.0,0.02763]
[1753580638461,0.32413196,118290.0,118280.0,0.04343]
[1753580640536,0.32413196,118290.0,118280.0,0.0454]
[1753580640840,0.64013949,118290.0,118280.0,0.0454]
[1753580641077,0.32413196,118290.0,118280.0,0.0454]
[1753580642505,0.32413624,118290.0,118280.0,0.0296]
[1753580642712,0.32413624,118290.0,118280.0,0.02763]
[1753580643142,0.30828131,118290.0,118280.0,0.02763]
[1753580645579,0.62428884,118290.0,118280.0,0.02763]
[1753580646154,0.62428884,118290.0,118280.0,0.04263]
[1753580647595,0.62428884,118290.0,118280.0,0.02763]
[1753580648205,0.30035599,118290.0,118280.0,0.02763]
[1753580648409,0.3082835,118290.0,118280.0,0.02763]